[Event "Titled Tuesday Blitz May 30 Late 2023"]
[White "Seletsky, Grigory"]
[Black "Terry, Renato"]
[WhiteFideId "14112191"]
[BlackFideId "3803457"]
[WhiteElo "2491"]
[BlackElo "2575"]
[Result "0-1"]
[Round "01"]
[TimeControl "180+2"]
[Date "2023.05.31"]
[WhiteClock "0:00:00"]
[BlackClock "0:00:10"]

1. e4 {[%clk 0:02:59]}  e6 {[%clk 0:03:00]} 2. d3 {[%clk 0:02:59]}  d5 {[%clk 0:03:00]} 3. Nd2 {[%clk 0:02:58]}  Nf6 {[%clk 0:03:00]} 4. Ngf3 {[%clk 0:02:59]}  b6 {[%clk 0:03:00]} 5. Be2 {[%clk 0:02:53]}  c5 {[%clk 0:02:57]} 6. O-O {[%clk 0:02:52]}  Bb7 {[%clk 0:02:51]} 7. exd5 {[%clk 0:02:26]}  Nxd5 {[%clk 0:02:48]} 8. Nc4 {[%clk 0:02:26]}  Be7 {[%clk 0:02:43]} 9. a4 {[%clk 0:02:26]}  O-O {[%clk 0:02:42]} 10. c3 {[%clk 0:02:26]}  Nd7 {[%clk 0:02:34]} 11. Re1 {[%clk 0:02:26]}  Qc7 {[%clk 0:02:33]} 12. Bf1 {[%clk 0:02:25]}  Rad8 {[%clk 0:02:30]} 13. g3 {[%clk 0:02:22]}  h6 {[%clk 0:02:17]} 14. Qe2 {[%clk 0:02:20]}  Bf6 {[%clk 0:02:17]} 15. Bg2 {[%clk 0:02:18]}  Rfe8 {[%clk 0:02:16]} 16. Nfd2 {[%clk 0:02:05]}  Be7 {[%clk 0:02:02]} 17. Nf3 {[%clk 0:02:03]}  Nf8 {[%clk 0:01:55]} 18. Nfe5 {[%clk 0:02:02]}  f6 {[%clk 0:01:46]} 19. Nf3 {[%clk 0:01:56]}  Qd7 {[%clk 0:01:44]} 20. Bh3 {[%clk 0:01:53]}  Nc7 {[%clk 0:01:42]} 21. Rd1 {[%clk 0:01:50]}  g5 {[%clk 0:01:18]} 22. Bg2 {[%clk 0:01:48]}  Kg7 {[%clk 0:01:17]} 23. h4 {[%clk 0:01:47]}  Ng6 {[%clk 0:01:14]} 24. h5 {[%clk 0:01:46]}  Nf8 {[%clk 0:01:13]} 25. Ne1 {[%clk 0:01:41]}  Bxg2 {[%clk 0:01:11]} 26. Nxg2 {[%clk 0:01:41]}  Qc6 {[%clk 0:01:01]} 27. g4 {[%clk 0:01:35]}  Rd7 {[%clk 0:01:01]} 28. Be3 {[%clk 0:01:32]}  Red8 {[%clk 0:01:01]} 29. Ne1 {[%clk 0:01:30]}  a6 {[%clk 0:00:46]} 30. Qf1 {[%clk 0:01:28]}  b5 {[%clk 0:00:45]} 31. axb5 {[%clk 0:01:27]}  axb5 {[%clk 0:00:46]} 32. Nd2 {[%clk 0:01:24]}  Nd5 {[%clk 0:00:45]} 33. Qg2 {[%clk 0:01:24]}  Qc7 {[%clk 0:00:42]} 34. Qf3 {[%clk 0:01:23]}  Qb7 {[%clk 0:00:35]} 35. Nf1 {[%clk 0:01:21]}  Nb6 {[%clk 0:00:29]} 36. Qxb7 {[%clk 0:01:20]}  Rxb7 {[%clk 0:00:29]} 37. Ra5 {[%clk 0:01:19]}  Na4 {[%clk 0:00:30]} 38. Rd2 {[%clk 0:01:18]}  Nd7 {[%clk 0:00:23]} 39. d4 {[%clk 0:01:14]}  c4 {[%clk 0:00:20]} 40. Ng2 {[%clk 0:01:12]}  Rdb8 {[%clk 0:00:17]} 41. Rc2 {[%clk 0:01:12]}  Bd8 {[%clk 0:00:17]} 42. Ra6 {[%clk 0:01:10]}  Ndb6 {[%clk 0:00:18]} 43. Bd2 {[%clk 0:01:01]}  Kf7 {[%clk 0:00:18]} 44. Nfe3 {[%clk 0:01:01]}  Bc7 {[%clk 0:00:18]} 45. Kf1 {[%clk 0:01:00]}  Rd8 {[%clk 0:00:18]} 46. Ke2 {[%clk 0:00:59]}  Ke7 {[%clk 0:00:19]} 47. f3 {[%clk 0:00:56]}  Kd7 {[%clk 0:00:19]} 48. Be1 {[%clk 0:00:53]}  Kc8 {[%clk 0:00:17]} 49. Bf2 {[%clk 0:00:43]}  Rb8 {[%clk 0:00:17]} 50. Ra7 {[%clk 0:00:42]}  Rd7 {[%clk 0:00:17]} 51. Rxc7+ {[%clk 0:00:30]}  Rxc7 {[%clk 0:00:15]} 52. Bg3 {[%clk 0:00:30]}  Ra8 {[%clk 0:00:14]} 53. Bxc7 {[%clk 0:00:29]}  Kxc7 {[%clk 0:00:15]} 54. f4 {[%clk 0:00:29]}  Kd6 {[%clk 0:00:15]} 55. f5 {[%clk 0:00:26]}  e5 {[%clk 0:00:15]} 56. dxe5+ {[%clk 0:00:24]}  Kxe5 {[%clk 0:00:16]} 57. Kf3 {[%clk 0:00:23]}  Rd8 {[%clk 0:00:14]} 58. Re2 {[%clk 0:00:23]}  Kd6 {[%clk 0:00:14]} 59. Rd2+ {[%clk 0:00:20]}  Kc7 {[%clk 0:00:15]} 60. Rxd8 {[%clk 0:00:21]}  Kxd8 {[%clk 0:00:15]} 61. Nd1 {[%clk 0:00:20]}  Kc7 {[%clk 0:00:16]} 62. Ke4 {[%clk 0:00:20]}  Kd6 {[%clk 0:00:16]} 63. Kd4 {[%clk 0:00:19]}  Nd7 {[%clk 0:00:14]} 64. Ne1 {[%clk 0:00:18]}  Ne5 {[%clk 0:00:14]} 65. Ne3 {[%clk 0:00:12]}  Nxb2 {[%clk 0:00:14]} 66. Nd5 {[%clk 0:00:11]}  Nxg4 {[%clk 0:00:13]} 67. Nc2 {[%clk 0:00:09]}  Nd3 {[%clk 0:00:07]} 68. Na3 {[%clk 0:00:09]}  Kc6 {[%clk 0:00:08]} 69. Ne7+ {[%clk 0:00:07]}  Kd7 {[%clk 0:00:08]} 70. Nd5 {[%clk 0:00:07]}  Kc6 {[%clk 0:00:08]} 71. Ne7+ {[%clk 0:00:06]}  Kb6 {[%clk 0:00:09]} 72. Nd5+ {[%clk 0:00:06]}  Ka5 {[%clk 0:00:10]} 73. Nxc4+ {[%clk 0:00:01]}  bxc4 {[%clk 0:00:10]} 74. Kxc4 {[%clk 0:00:00]}  Nf4 {[%clk 0:00:10]} 0-1


[Site "https://www.chess.com"]

[Event "Titled Tuesday Blitz May 30 Late 2023"]
[White "Xiong, Jeffery"]
[Black "Sanhueza, Cristian"]
[WhiteFideId "2047640"]
[BlackFideId "116815"]
[WhiteElo "2726"]
[BlackElo "2174"]
[Result "1-0"]
[Round "01"]
[TimeControl "180+2"]
[Date "2023.05.31"]
[WhiteClock "0:00:46"]
[BlackClock "0:00:00"]

1. e4 {[%clk 0:02:57]}  e5 {[%clk 0:02:57]} 2. Nf3 {[%clk 0:02:57]}  Nc6 {[%clk 0:02:57]} 3. Nc3 {[%clk 0:02:58]}  Nf6 {[%clk 0:02:57]} 4. d4 {[%clk 0:02:58]}  exd4 {[%clk 0:02:58]} 5. Nxd4 {[%clk 0:02:59]}  Bb4 {[%clk 0:02:58]} 6. Nxc6 {[%clk 0:03:00]}  bxc6 {[%clk 0:02:58]} 7. Bd3 {[%clk 0:03:00]}  d5 {[%clk 0:02:58]} 8. exd5 {[%clk 0:03:01]}  O-O {[%clk 0:02:59]} 9. O-O {[%clk 0:03:02]}  Bg4 {[%clk 0:03:00]} 10. Ne2 {[%clk 0:03:02]}  cxd5 {[%clk 0:02:59]} 11. h3 {[%clk 0:03:03]}  Bh5 {[%clk 0:02:58]} 12. c4 {[%clk 0:03:03]}  c6 {[%clk 0:02:39]} 13. Qc2 {[%clk 0:03:03]}  Bg6 {[%clk 0:02:38]} 14. Be3 {[%clk 0:03:00]}  Re8 {[%clk 0:02:30]} 15. a3 {[%clk 0:02:34]}  Bd6 {[%clk 0:02:21]} 16. Rad1 {[%clk 0:02:34]}  Qe7 {[%clk 0:02:20]} 17. Rfe1 {[%clk 0:01:55]}  a5 {[%clk 0:02:16]} 18. Nd4 {[%clk 0:01:52]}  Qb7 {[%clk 0:01:15]} 19. cxd5 {[%clk 0:01:13]}  cxd5 {[%clk 0:01:15]} 20. Bxg6 {[%clk 0:01:13]}  hxg6 {[%clk 0:01:15]} 21. Qc6 {[%clk 0:01:14]}  Qb8 {[%clk 0:00:51]} 22. Qb5 {[%clk 0:01:01]}  Qxb5 {[%clk 0:00:26]} 23. Nxb5 {[%clk 0:01:01]}  Be5 {[%clk 0:00:27]} 24. Bd4 {[%clk 0:00:56]}  Bxd4 {[%clk 0:00:25]} 25. Nxd4 {[%clk 0:00:56]}  a4 {[%clk 0:00:22]} 26. Kf1 {[%clk 0:00:55]}  Rxe1+ {[%clk 0:00:20]} 27. Kxe1 {[%clk 0:00:55]}  Rb8 {[%clk 0:00:21]} 28. Rb1 {[%clk 0:00:55]}  Ne4 {[%clk 0:00:20]} 29. b4 {[%clk 0:00:55]}  axb3 {[%clk 0:00:17]} 30. Rxb3 {[%clk 0:00:55]}  Rxb3 {[%clk 0:00:16]} 31. Nxb3 {[%clk 0:00:56]}  Kf8 {[%clk 0:00:17]} 32. f3 {[%clk 0:00:53]}  Nd6 {[%clk 0:00:15]} 33. Ke2 {[%clk 0:00:53]}  Ke7 {[%clk 0:00:15]} 34. Kd3 {[%clk 0:00:54]}  Nf5 {[%clk 0:00:14]} 35. Nd4 {[%clk 0:00:52]}  Nh4 {[%clk 0:00:13]} 36. g3 {[%clk 0:00:51]}  Ng2 {[%clk 0:00:11]} 37. Ke2 {[%clk 0:00:51]}  Kd6 {[%clk 0:00:06]} 38. a4 {[%clk 0:00:52]}  Kc5 {[%clk 0:00:05]} 39. a5 {[%clk 0:00:52]}  f5 {[%clk 0:00:00]} 40. Kf2 {[%clk 0:00:46]} 1-0


[Site "https://www.chess.com"]

[Event "Titled Tuesday Blitz May 30 Late 2023"]
[White "LangesNasenhaar"]
[Black "Zhigalko, Sergei"]
[BlackFideId "13502956"]
[WhiteElo "2469"]
[BlackElo "2626"]
[Result "0-1"]
[Round "01"]
[TimeControl "180+2"]
[Date "2023.05.31"]
[WhiteClock "0:00:57"]
[BlackClock "0:01:51"]

1. d4 {[%clk 0:02:59]}  Nf6 {[%clk 0:02:59]} 2. Nc3 {[%clk 0:03:00]}  d5 {[%clk 0:02:59]} 3. Bf4 {[%clk 0:03:00]}  a6 {[%clk 0:03:00]} 4. e3 {[%clk 0:03:01]}  b5 {[%clk 0:02:59]} 5. Nf3 {[%clk 0:03:00]}  Bb7 {[%clk 0:03:00]} 6. Ne5 {[%clk 0:02:59]}  e6 {[%clk 0:03:00]} 7. Bd3 {[%clk 0:02:55]}  c5 {[%clk 0:02:59]} 8. O-O {[%clk 0:02:53]}  c4 {[%clk 0:03:00]} 9. Be2 {[%clk 0:02:53]}  Nc6 {[%clk 0:03:00]} 10. a3 {[%clk 0:02:52]}  Be7 {[%clk 0:02:59]} 11. Bf3 {[%clk 0:02:43]}  O-O {[%clk 0:02:59]} 12. Re1 {[%clk 0:02:43]}  Rc8 {[%clk 0:02:56]} 13. h3 {[%clk 0:02:43]}  Nxe5 {[%clk 0:02:53]} 14. Bxe5 {[%clk 0:02:42]}  Nd7 {[%clk 0:02:53]} 15. Bh2 {[%clk 0:02:41]}  f5 {[%clk 0:02:54]} 16. Ne2 {[%clk 0:02:33]}  Nf6 {[%clk 0:02:36]} 17. Nf4 {[%clk 0:02:26]}  Qd7 {[%clk 0:02:35]} 18. c3 {[%clk 0:02:26]}  Bc6 {[%clk 0:02:29]} 19. Nh5 {[%clk 0:02:20]}  Nxh5 {[%clk 0:02:13]} 20. Bxh5 {[%clk 0:02:19]}  Bd6 {[%clk 0:02:14]} 21. Bf4 {[%clk 0:02:11]}  Qc7 {[%clk 0:02:12]} 22. g3 {[%clk 0:02:04]}  Rb8 {[%clk 0:02:04]} 23. Bxd6 {[%clk 0:01:44]}  Qxd6 {[%clk 0:02:04]} 24. f4 {[%clk 0:01:39]}  a5 {[%clk 0:02:02]} 25. Rc1 {[%clk 0:01:33]}  Rb6 {[%clk 0:02:02]} 26. Rc2 {[%clk 0:01:30]}  b4 {[%clk 0:02:01]} 27. axb4 {[%clk 0:01:27]}  Ba4 {[%clk 0:02:01]} 28. bxa5 {[%clk 0:01:26]}  Rxb2 {[%clk 0:01:59]} 29. Rxb2 {[%clk 0:01:23]}  Bxd1 {[%clk 0:01:59]} 30. Rxd1 {[%clk 0:01:23]}  Qa3 {[%clk 0:02:00]} 31. Rc2 {[%clk 0:01:17]}  Rb8 {[%clk 0:02:00]} 32. Bf3 {[%clk 0:01:12]}  Qxa5 {[%clk 0:01:59]} 33. g4 {[%clk 0:01:11]}  g6 {[%clk 0:01:57]} 34. Kf2 {[%clk 0:01:08]}  Rb3 {[%clk 0:01:55]} 35. Rdc1 {[%clk 0:01:08]}  Qa3 {[%clk 0:01:54]} 36. g5 {[%clk 0:01:06]}  Rb2 {[%clk 0:01:52]} 37. Bd1 {[%clk 0:00:57]}  Qxc3 {[%clk 0:01:51]} 0-1


[Site "https://www.chess.com"]

[Event "Titled Tuesday Blitz May 30 Late 2023"]
[White "Grigoriants, Sergey"]
[Black "Zeman, Matyas"]
[WhiteFideId "4130804"]
[BlackFideId "364398"]
[WhiteElo "2502"]
[BlackElo "2254"]
[Result "1-0"]
[Round "01"]
[TimeControl "180+2"]
[Date "2023.05.31"]
[WhiteClock "0:01:04"]
[BlackClock "0:00:02"]

1. d4 {[%clk 0:02:51]}  Nf6 {[%clk 0:02:42]} 2. c4 {[%clk 0:02:47]}  e6 {[%clk 0:02:42]} 3. g3 {[%clk 0:02:46]}  d5 {[%clk 0:02:42]} 4. Bg2 {[%clk 0:02:46]}  Bb4+ {[%clk 0:02:42]} 5. Bd2 {[%clk 0:02:43]}  Be7 {[%clk 0:02:42]} 6. Nf3 {[%clk 0:02:43]}  O-O {[%clk 0:02:43]} 7. O-O {[%clk 0:02:43]}  Nbd7 {[%clk 0:02:43]} 8. Qc2 {[%clk 0:02:42]}  c6 {[%clk 0:02:43]} 9. Bf4 {[%clk 0:02:42]}  b6 {[%clk 0:02:43]} 10. Rd1 {[%clk 0:02:41]}  Ba6 {[%clk 0:02:36]} 11. b3 {[%clk 0:02:38]}  Rc8 {[%clk 0:02:35]} 12. Nc3 {[%clk 0:02:16]}  Nh5 {[%clk 0:02:11]} 13. Bd2 {[%clk 0:02:08]}  Nhf6 {[%clk 0:02:10]} 14. e4 {[%clk 0:02:07]}  dxc4 {[%clk 0:02:00]} 15. e5 {[%clk 0:02:01]}  Nd5 {[%clk 0:01:58]} 16. Ne4 {[%clk 0:02:01]}  c5 {[%clk 0:01:53]} 17. Nfg5 {[%clk 0:01:42]}  h6 {[%clk 0:01:43]} 18. Nxc5 {[%clk 0:01:28]}  Bxg5 {[%clk 0:01:27]} 19. Bxg5 {[%clk 0:01:28]}  Qxg5 {[%clk 0:01:22]} 20. Nxa6 {[%clk 0:01:27]}  Qe7 {[%clk 0:00:41]} 21. bxc4 {[%clk 0:01:18]}  Qa3 {[%clk 0:00:40]} 22. Qb3 {[%clk 0:01:18]}  Qxa6 {[%clk 0:00:07]} 23. cxd5 {[%clk 0:01:18]}  exd5 {[%clk 0:00:08]} 24. Bxd5 {[%clk 0:01:11]}  Rcd8 {[%clk 0:00:08]} 25. Rac1 {[%clk 0:01:10]}  Qa5 {[%clk 0:00:06]} 26. Rc7 {[%clk 0:01:04]}  Qa6 {[%clk 0:00:02]} 1-0


[Site "https://www.chess.com"]

[Event "Titled Tuesday Blitz May 30 Late 2023"]
[White "Omariev, Maksim"]
[Black "Durarbayli, Vasif"]
[WhiteFideId "4193423"]
[BlackFideId "13402935"]
[WhiteElo "2465"]
[BlackElo "2551"]
[Result "0-1"]
[Round "01"]
[TimeControl "180+2"]
[Date "2023.05.31"]
[WhiteClock "0:00:26"]
[BlackClock "0:02:00"]

1. g4 {[%clk 0:02:56]}  d5 {[%clk 0:02:57]} 2. Bg2 {[%clk 0:02:57]}  c6 {[%clk 0:02:55]} 3. h3 {[%clk 0:02:57]}  e5 {[%clk 0:02:55]} 4. d4 {[%clk 0:02:56]}  e4 {[%clk 0:02:49]} 5. c4 {[%clk 0:02:55]}  h5 {[%clk 0:02:42]} 6. g5 {[%clk 0:02:54]}  h4 {[%clk 0:02:35]} 7. Nc3 {[%clk 0:02:54]}  Na6 {[%clk 0:02:34]} 8. cxd5 {[%clk 0:02:23]}  cxd5 {[%clk 0:02:34]} 9. Qb3 {[%clk 0:02:19]}  Nc7 {[%clk 0:02:33]} 10. Bf4 {[%clk 0:02:16]}  Bd6 {[%clk 0:02:33]} 11. Bxd6 {[%clk 0:01:47]}  Qxd6 {[%clk 0:02:34]} 12. e3 {[%clk 0:01:48]}  Ne7 {[%clk 0:02:25]} 13. Nge2 {[%clk 0:01:47]}  Rh5 {[%clk 0:02:25]} 14. O-O-O {[%clk 0:01:35]}  Rxg5 {[%clk 0:02:23]} 15. Rhg1 {[%clk 0:01:30]}  Kf8 {[%clk 0:02:04]} 16. Kb1 {[%clk 0:01:22]}  b5 {[%clk 0:02:03]} 17. Nxb5 {[%clk 0:01:12]}  Nxb5 {[%clk 0:02:04]} 18. Qxb5 {[%clk 0:01:13]}  Ba6 {[%clk 0:02:02]} 19. Qb7 {[%clk 0:00:26]}  Bxb7 {[%clk 0:02:00]} 0-1


[Site "https://www.chess.com"]

[Event "Titled Tuesday Blitz May 30 Late 2023"]
[White "Vovk, Orest"]
[Black "Hansen, Eric"]
[WhiteFideId "14113490"]
[BlackFideId "2606771"]
[WhiteElo "2215"]
[BlackElo "2561"]
[Result "1-0"]
[Round "01"]
[TimeControl "180+2"]
[Date "2023.05.31"]
[WhiteClock "0:00:05"]
[BlackClock "0:00:02"]

1. g4 {[%clk 0:02:50]}  d5 {[%clk 0:02:54]} 2. Bg2 {[%clk 0:02:49]}  c6 {[%clk 0:02:53]} 3. h3 {[%clk 0:02:47]}  e5 {[%clk 0:02:50]} 4. d4 {[%clk 0:02:47]}  exd4 {[%clk 0:02:50]} 5. Qxd4 {[%clk 0:02:47]}  Nd7 {[%clk 0:02:51]} 6. c4 {[%clk 0:02:45]}  dxc4 {[%clk 0:02:46]} 7. Nc3 {[%clk 0:02:35]}  Nb6 {[%clk 0:02:45]} 8. Qxd8+ {[%clk 0:02:34]}  Kxd8 {[%clk 0:02:45]} 9. Nf3 {[%clk 0:02:32]}  h6 {[%clk 0:02:43]} 10. O-O {[%clk 0:02:32]}  Nf6 {[%clk 0:02:41]} 11. Ne5 {[%clk 0:02:27]}  Ke8 {[%clk 0:02:38]} 12. Be3 {[%clk 0:02:21]}  Be6 {[%clk 0:02:33]} 13. Bxb6 {[%clk 0:02:16]}  axb6 {[%clk 0:02:33]} 14. Nxc6 {[%clk 0:02:16]}  Bc5 {[%clk 0:02:27]} 15. Ne5 {[%clk 0:02:03]}  Rb8 {[%clk 0:02:14]} 16. Rfd1 {[%clk 0:01:33]}  Ke7 {[%clk 0:02:13]} 17. Nd5+ {[%clk 0:01:23]}  Nxd5 {[%clk 0:02:05]} 18. Bxd5 {[%clk 0:01:24]}  b5 {[%clk 0:02:02]} 19. Bxe6 {[%clk 0:01:17]}  Kxe6 {[%clk 0:02:02]} 20. Nd7 {[%clk 0:01:07]}  Rbc8 {[%clk 0:02:02]} 21. Nxc5+ {[%clk 0:01:06]}  Rxc5 {[%clk 0:02:02]} 22. a3 {[%clk 0:00:59]}  Ra8 {[%clk 0:01:55]} 23. Rac1 {[%clk 0:00:54]}  Rd5 {[%clk 0:01:50]} 24. Rxd5 {[%clk 0:00:48]}  Kxd5 {[%clk 0:01:50]} 25. Rd1+ {[%clk 0:00:47]}  Kc6 {[%clk 0:01:51]} 26. Kf1 {[%clk 0:00:35]}  b4 {[%clk 0:01:47]} 27. axb4 {[%clk 0:00:32]}  Ra2 {[%clk 0:01:47]} 28. Rd2 {[%clk 0:00:15]}  Kb5 {[%clk 0:01:45]} 29. Rd7 {[%clk 0:00:06]}  b6 {[%clk 0:01:45]} 30. Rxf7 {[%clk 0:00:05]}  Kxb4 {[%clk 0:01:46]} 31. Rxg7 {[%clk 0:00:04]}  Rxb2 {[%clk 0:01:46]} 32. f4 {[%clk 0:00:03]}  c3 {[%clk 0:01:46]} 33. Rc7 {[%clk 0:00:03]}  Kb3 {[%clk 0:01:39]} 34. f5 {[%clk 0:00:02]}  Rb1+ {[%clk 0:01:37]} 35. Kf2 {[%clk 0:00:02]}  c2 {[%clk 0:01:38]} 36. f6 {[%clk 0:00:02]}  c1=Q {[%clk 0:01:38]} 37. Rxc1 {[%clk 0:00:02]}  Rxc1 {[%clk 0:01:39]} 38. h4 {[%clk 0:00:02]}  Rc8 {[%clk 0:00:46]} 39. g5 {[%clk 0:00:01]}  hxg5 {[%clk 0:00:47]} 40. hxg5 {[%clk 0:00:02]}  Rf8 {[%clk 0:00:44]} 41. Ke3 {[%clk 0:00:01]}  Kc4 {[%clk 0:00:43]} 42. Ke4 {[%clk 0:00:01]}  b5 {[%clk 0:00:34]} 43. Ke5 {[%clk 0:00:01]}  b4 {[%clk 0:00:35]} 44. g6 {[%clk 0:00:02]}  b3 {[%clk 0:00:36]} 45. g7 {[%clk 0:00:02]}  Re8+ {[%clk 0:00:20]} 46. Kd6 {[%clk 0:00:03]}  b2 {[%clk 0:00:12]} 47. f7 {[%clk 0:00:03]}  Rxe2 {[%clk 0:00:05]} 48. g8=Q {[%clk 0:00:02]}  b1=Q {[%clk 0:00:06]} 49. f8=Q+ {[%clk 0:00:02]}  Kc3 {[%clk 0:00:07]} 50. Qc8+ {[%clk 0:00:03]}  Kd2 {[%clk 0:00:07]} 51. Qc5 {[%clk 0:00:03]}  Re3 {[%clk 0:00:03]} 52. Qgg5 {[%clk 0:00:03]}  Qd3+ {[%clk 0:00:03]} 53. Qcd5 {[%clk 0:00:03]}  Kc3 {[%clk 0:00:02]} 54. Qxd3+ {[%clk 0:00:03]}  Rxd3+ {[%clk 0:00:03]} 55. Kc5 {[%clk 0:00:03]}  Kc2 {[%clk 0:00:03]} 56. Qg7 {[%clk 0:00:04]}  Rc3+ {[%clk 0:00:03]} 57. Kb4 {[%clk 0:00:04]}  Rb3+ {[%clk 0:00:03]} 58. Ka4 {[%clk 0:00:05]}  Re3 {[%clk 0:00:03]} 59. Qg2+ {[%clk 0:00:05]}  Kd3 {[%clk 0:00:03]} 60. Kb4 {[%clk 0:00:05]}  Re4+ {[%clk 0:00:03]} 61. Kc5 {[%clk 0:00:05]}  Re2 {[%clk 0:00:03]} 62. Qf3+ {[%clk 0:00:05]}  Re3 {[%clk 0:00:03]} 63. Qd1+ {[%clk 0:00:05]}  Kc3 {[%clk 0:00:02]} 64. Qd4+ {[%clk 0:00:05]} 1-0


[Site "https://www.chess.com"]

[Event "Titled Tuesday Blitz May 30 Late 2023"]
[White "Baidetskyi, Valentin"]
[Black "Jimenez Almeida, Luis David"]
[WhiteFideId "14142317"]
[BlackFideId "22242244"]
[WhiteElo "2490"]
[BlackElo "2245"]
[Result "0-1"]
[Round "01"]
[TimeControl "180+2"]
[Date "2023.05.31"]
[WhiteClock "0:00:01"]
[BlackClock "0:01:22"]

1. e4 {[%clk 0:03:00]}  c5 {[%clk 0:02:58]} 2. Nf3 {[%clk 0:03:01]}  e6 {[%clk 0:02:58]} 3. d4 {[%clk 0:03:01]}  cxd4 {[%clk 0:02:59]} 4. Nxd4 {[%clk 0:03:02]}  a6 {[%clk 0:02:59]} 5. c4 {[%clk 0:03:02]}  Nf6 {[%clk 0:02:57]} 6. Nc3 {[%clk 0:03:02]}  Nc6 {[%clk 0:02:58]} 7. a3 {[%clk 0:03:01]}  Be7 {[%clk 0:02:57]} 8. Be3 {[%clk 0:03:01]}  d5 {[%clk 0:02:56]} 9. exd5 {[%clk 0:02:58]}  exd5 {[%clk 0:02:57]} 10. Be2 {[%clk 0:02:57]}  O-O {[%clk 0:02:56]} 11. O-O {[%clk 0:02:57]}  dxc4 {[%clk 0:02:55]} 12. Nxc6 {[%clk 0:02:57]}  bxc6 {[%clk 0:02:52]} 13. Bxc4 {[%clk 0:02:57]}  Bg4 {[%clk 0:02:46]} 14. Qxd8 {[%clk 0:02:54]}  Rfxd8 {[%clk 0:02:47]} 15. h3 {[%clk 0:02:53]}  Bf5 {[%clk 0:02:46]} 16. Rfd1 {[%clk 0:02:36]}  a5 {[%clk 0:02:46]} 17. Rxd8+ {[%clk 0:02:24]}  Rxd8 {[%clk 0:02:42]} 18. Rd1 {[%clk 0:02:24]}  Rb8 {[%clk 0:02:41]} 19. Rd2 {[%clk 0:02:18]}  h6 {[%clk 0:02:38]} 20. f3 {[%clk 0:02:13]}  g5 {[%clk 0:02:35]} 21. g4 {[%clk 0:02:02]}  Bg6 {[%clk 0:02:34]} 22. Kg2 {[%clk 0:01:02]}  Kg7 {[%clk 0:02:33]} 23. Ba7 {[%clk 0:00:52]}  Rb7 {[%clk 0:02:32]} 24. Bd4 {[%clk 0:00:51]}  Kf8 {[%clk 0:02:26]} 25. Be5 {[%clk 0:00:47]}  Nd7 {[%clk 0:02:24]} 26. Bd4 {[%clk 0:00:32]}  Bc5 {[%clk 0:02:16]} 27. Na4 {[%clk 0:00:07]}  Bxd4 {[%clk 0:02:11]} 28. Rxd4 {[%clk 0:00:08]}  Ne5 {[%clk 0:02:12]} 29. Ba6 {[%clk 0:00:05]}  Rb8 {[%clk 0:02:11]} 30. Kg3 {[%clk 0:00:02]}  Bc2 {[%clk 0:02:12]} 31. f4 {[%clk 0:00:02]}  gxf4+ {[%clk 0:02:10]} 32. Kxf4 {[%clk 0:00:03]}  Ng6+ {[%clk 0:02:11]} 33. Kg3 {[%clk 0:00:03]}  Bxa4 {[%clk 0:02:09]} 34. Rxa4 {[%clk 0:00:04]}  Rb3+ {[%clk 0:02:09]} 35. Kh2 {[%clk 0:00:02]}  Rxb2+ {[%clk 0:02:09]} 36. Kg3 {[%clk 0:00:03]}  Rb3+ {[%clk 0:02:10]} 37. Kh2 {[%clk 0:00:03]}  Kg7 {[%clk 0:01:51]} 38. Rxa5 {[%clk 0:00:03]}  Nf4 {[%clk 0:01:52]} 39. Bf1 {[%clk 0:00:02]}  Rb1 {[%clk 0:01:48]} 40. Kg1 {[%clk 0:00:02]}  Nxh3+ {[%clk 0:01:47]} 41. Kg2 {[%clk 0:00:03]}  Nf4+ {[%clk 0:01:47]} 42. Kf2 {[%clk 0:00:03]}  Ne6 {[%clk 0:01:40]} 43. Re5 {[%clk 0:00:02]}  Ra1 {[%clk 0:01:38]} 44. Re3 {[%clk 0:00:02]}  Kf6 {[%clk 0:01:34]} 45. Kg3 {[%clk 0:00:02]}  Ng5 {[%clk 0:01:33]} 46. Be2 {[%clk 0:00:02]}  c5 {[%clk 0:01:32]} 47. Kf2 {[%clk 0:00:02]}  Ra2 {[%clk 0:01:29]} 48. Kg3 {[%clk 0:00:02]}  Ne6 {[%clk 0:01:26]} 49. Kf2 {[%clk 0:00:02]}  Nd4 {[%clk 0:01:26]} 50. Ke1 {[%clk 0:00:01]}  Nc2+ {[%clk 0:01:22]} 0-1


[Site "https://www.chess.com"]

[Event "Titled Tuesday Blitz May 30 Late 2023"]
[White "Gurevich, Dmitry"]
[Black "Holt, Conrad"]
[WhiteFideId "2000407"]
[BlackFideId "2034387"]
[WhiteElo "2506"]
[BlackElo "2592"]
[Result "0-1"]
[Round "01"]
[TimeControl "180+2"]
[Date "2023.05.31"]
[WhiteClock "0:00:04"]
[BlackClock "0:00:23"]

1. d4 {[%clk 0:02:58]}  d5 {[%clk 0:02:57]} 2. c4 {[%clk 0:02:58]}  c6 {[%clk 0:02:57]} 3. e3 {[%clk 0:02:58]}  Bf5 {[%clk 0:02:57]} 4. Nc3 {[%clk 0:02:58]}  e6 {[%clk 0:02:57]} 5. g4 {[%clk 0:02:56]}  Bg6 {[%clk 0:02:56]} 6. h4 {[%clk 0:02:57]}  h5 {[%clk 0:02:55]} 7. g5 {[%clk 0:02:57]}  Bd6 {[%clk 0:02:52]} 8. f4 {[%clk 0:02:56]}  Ne7 {[%clk 0:02:48]} 9. Nf3 {[%clk 0:02:55]}  Nf5 {[%clk 0:02:46]} 10. Kf2 {[%clk 0:02:56]}  Nd7 {[%clk 0:02:43]} 11. c5 {[%clk 0:02:54]}  Be7 {[%clk 0:02:37]} 12. b4 {[%clk 0:02:54]}  Qc7 {[%clk 0:02:24]} 13. Bd2 {[%clk 0:02:51]}  b6 {[%clk 0:02:21]} 14. a3 {[%clk 0:02:39]}  a5 {[%clk 0:02:16]} 15. Be2 {[%clk 0:02:37]}  O-O {[%clk 0:01:58]} 16. Qb3 {[%clk 0:02:29]}  Rfb8 {[%clk 0:01:54]} 17. Qd1 {[%clk 0:02:22]}  Qb7 {[%clk 0:01:41]} 18. Rg1 {[%clk 0:02:14]}  axb4 {[%clk 0:01:31]} 19. axb4 {[%clk 0:02:13]}  bxc5 {[%clk 0:01:29]} 20. bxc5 {[%clk 0:02:09]}  Bd8 {[%clk 0:01:26]} 21. Rxa8 {[%clk 0:02:03]}  Rxa8 {[%clk 0:01:21]} 22. Qb1 {[%clk 0:02:00]}  Qa7 {[%clk 0:01:21]} 23. Qb2 {[%clk 0:01:58]}  Bc7 {[%clk 0:01:19]} 24. Rc1 {[%clk 0:01:46]}  Ne7 {[%clk 0:01:16]} 25. Nd1 {[%clk 0:01:34]}  Bf5 {[%clk 0:01:11]} 26. Bc3 {[%clk 0:01:29]}  Rb8 {[%clk 0:01:04]} 27. Ra1 {[%clk 0:01:21]}  Qb7 {[%clk 0:00:53]} 28. Qxb7 {[%clk 0:01:20]}  Rxb7 {[%clk 0:00:54]} 29. Ra8+ {[%clk 0:01:13]}  Nf8 {[%clk 0:00:48]} 30. Ba5 {[%clk 0:01:11]}  Bxa5 {[%clk 0:00:42]} 31. Rxa5 {[%clk 0:01:10]}  Nfg6 {[%clk 0:00:42]} 32. Ra6 {[%clk 0:01:01]}  Bg4 {[%clk 0:00:41]} 33. Rb6 {[%clk 0:00:53]}  Ra7 {[%clk 0:00:37]} 34. Nc3 {[%clk 0:00:53]}  Ra3 {[%clk 0:00:31]} 35. Nb1 {[%clk 0:00:49]}  Ra2 {[%clk 0:00:32]} 36. Nc3 {[%clk 0:00:49]}  Rc2 {[%clk 0:00:31]} 37. Rb8+ {[%clk 0:00:31]}  Kh7 {[%clk 0:00:30]} 38. Rb3 {[%clk 0:00:28]}  Nf5 {[%clk 0:00:27]} 39. Ng1 {[%clk 0:00:15]}  Ngxh4 {[%clk 0:00:24]} 40. Ke1 {[%clk 0:00:04]}  Ng2+ {[%clk 0:00:23]} 0-1


[Site "https://www.chess.com"]